Cogmind - Beta 16 @@@ ROGUE MODE // 2025.12.07 @ 18:50:08 Player: mephiles96 Result: Self-destructed Performance ------------- Evolutions (1) 500 Regions Visited (2) 400 Robots Destroyed (8) 40 Value Destroyed (124) 124 Prototype IDs (0) 0 Alien Tech Used (0) 0 Bonus (0) 0 TOTAL SCORE: 1064 Bonus ------- None Cogmind --------- Core Integrity 400/400 Matter 267/300 Energy 240/250 System Corruption 0% Temperature Cool (0) Movement Walking (105) Location -9/Materials Parts ------- > --- POWER (1) -------- Ion Engine > --- PROPULSION (4) --- Aluminum Leg Aluminum Leg > --- UTILITY (2) ------ Small Storage Unit Seismic Detector > --- WEAPON (2) ------- (None) > --- INVENTORY (8) ---- Light Treads Light Treads Sensor Array EM Pulse Gun Peak State ------------ > --- POWER ------------ Light Ion Engine > --- PROPULSION ------- Aluminum Leg Aluminum Leg > --- UTILITY ---------- Small Storage Unit Transport Network Coupler > --- WEAPON ----------- Assault Rifle Light Assault Rifle > --- INVENTORY -------- Ion Engine Light Treads Light Treads EM Pulse Gun [Rating: 7] Favorites ----------- Power Light Ion Engine Engine Light Ion Engine Propulsion Aluminum Leg Leg Aluminum Leg Utility Small Storage Unit Device Seismic Detector Storage Small Storage Unit Processor Transport Network Coupler Weapon Light Assault Rifle Ballistic Gun Light Assault Rifle Build | -11 -10 -9 ------- Run | Yrd Mat Mat Slots Evolved 2 | . . 2 Power . | . . . Propulsion 2 | . . 2 Utility . | . . . Weapon . | . . . Parts Attached 10 | 6 2 2 Power 2 | 1 . 1 Engine 2 | 1 . 1 Core . | . . . Reactor . | . . . Propulsion 3 | 2 . 1 Treads . | . . . Leg 3 | 2 . 1 Wheel . | . . . Hover . | . . . Flight . | . . . Utility 3 | 1 2 . Device 1 | . 1 . Storage 1 | 1 . . Processor 1 | . 1 . Hackware . | . . . Protection . | . . . Artifact . | . . . Weapon 2 | 2 . . Energy Gun . | . . . Energy Cannon . | . . . Ballistic Gun 2 | 2 . . Ballistic Cannon . | . . . Launcher . | . . . Special Weapon . | . . . Impact Weapon . | . . . Slashing Weapon . | . . . Piercing Weapon . | . . . Special Melee Weapon . | . . . Unidentified Prototypes . | . . . Parts Lost 4 | . 4 . Power 1 | . 1 . Propulsion 1 | . 1 . Utility . | . . . Weapon 2 | . 2 . Highest Loss Streak 4 | . 4 . To Critical Strikes . | . . . Average Backups 4 | 2 4 4 Power . | . 1 . Propulsion 2 | 1 2 2 Utility . | . . 1 Weapon . | . 1 1 Tool/Special . | . . . Unused Backups 4 | . . 4 Power . | . . . Propulsion 2 | . . 2 Utility 1 | . . 1 Weapon 1 | . . 1 Tool/Special . | . . . Average Slot Usage (%) 92 | . 96 50 Engine 13 | . 13 11 Leg 26 | . 27 17 Device 10 | . 9 11 Storage 13 | . 14 11 Processor 1 | . 1 . Ballistic Gun 25 | . 27 . Peak Build Rating 7 | 6 7 5 Average Rating 6 | 4 6 4 On Entrance 3 | . 6 3 Avg Prop Armor Cover (%) . | . . . Naked Turns . | . . . Heaviest Build 12 | 11 12 11 Greatest Support 20 | 20 20 20 Greatest Overweight (x) . | . . . Average Overweight (x) . | . . . Largest Inventory Capacity 8 | 8 8 8 Average Capacity 7 | 7 8 8 Most Carried 6 | 5 6 5 Average Carried 4 | 3 4 4 Final Capacity 8 | 8 8 8 Final Carried 6 | 4 6 4 Class Distribution -------------------- 100% | Mutant Dominant Class ---------------- Mutant | -10/Materials Mutant | -9/Materials Resources | -11 -10 -9 ----------- Run | Yrd Mat Mat Matter Collected 344 | 176 168 . Remotely . | . . . Salvage Created 231 | . 231 . Parts 14 | . 14 . Haulers Intercepted . | . . . Recyclers Shooed . | . . . Parts Field Recycled . | . . . Retrieved Matter . | . . . Parts Self-Destructed . | . . . Prevented . | . . . Parts Restored . | . . . Kills | -11 -10 -9 ------- Run | Yrd Mat Mat Combat Hostiles Destroyed 7 | . 7 . Guns 7 | . 7 . Classes Destroyed 3 | . 3 . Recycler 1 | . 1 . Swarmer 5 | . 5 . Grunt 2 | . 2 . Best Kill Streak 3 | . 3 . Combat Bots Only 3 | . 3 . Max Kills in Single Turn 1 | . 1 . Gunslinging . | . . . Exploded . | . . . Melee . | . . . Uniques/NPCs Destroyed . | . . . Combat | -11 -10 -9 -------- Run | Yrd Mat Mat Hostile Shots Fired 86 | . 86 . Missed 29 | . 29 . Hits 57 | . 57 . Projectile 57 | . 57 . Damage Taken 510 | . 510 . Core 108 | . 108 . Absorbed by Shields . | . . . Core Remaining (%) 78 | 100 56 . Volleys Fired 28 | . 28 . Largest 2 | . 2 . Hottest 40 | . 40 . Shots Fired 55 | . 55 . Gun 55 | . 55 . Cannon . | . . . Launcher . | . . . Special . | . . . Kinetic 55 | . 55 . Thermal . | . . . Explosive . | . . . Electromagnetic . | . . . Robot Hit Streak 9 | . 9 . Robot Miss Streak 5 | . 5 . Penetration Max . | . . . Secondary Targets 1 | . 1 . Max Gunslinging Chain 1 | . 1 . Shots Hit Robots 34 | . 34 . Core Hits 14 | . 14 . Critical Kills . | . . . Critical Parts Destroyed . | . . . Critical Strikes . | . . . Melee Attacks . | . . . Impact . | . . . Slashing . | . . . Piercing . | . . . Sneak Attacks . | . . . Combat Hostiles . | . . . Follow-up Attacks . | . . . Damage Inflicted 380 | . 377 3 Guns 377 | . 377 . Cannons . | . . . Explosions . | . . . Melee . | . . . Ramming 3 | . . 3 Kinetic 377 | . 377 . Thermal . | . . . Explosive . | . . . Electromagnetic . | . . . Impact . | . . . Slashing . | . . . Piercing . | . . . Highest Corruption . | . . . Average Corruption . | . . . Corruption Purged . | . . . Corruption Blocked . | . . . Overload Shots . | . . . Overflow Damage . | . . . Projectiles . | . . . Explosions . | . . . Melee . | . . . Knockbacks . | . . . Impact . | . . . Kinetic . | . . . Secondary . | . . . Self-Inflicted Damage . | . . . Shots . | . . . Rammed . | . . . Targets Rammed 1 | . . 1 Kicked 1 | . . 1 Crushed . | . . . Highest Temperature 12 | . 12 . Average Temperature 8 | . 8 . Received Heat Transfer 84 | . 84 . Siege Activations . | . . . Martial Activations . | . . . Shielding Activations . | . . . Robots Disrupted . | . . . Combat Hostiles . | . . . Robots Corrupted . | . . . Combat Hostiles . | . . . Parts Fried . | . . . Impact Corruptions . | . . . Robots Melted . | . . . Combat Hostiles . | . . . Parts Melted . | . . . Heat Transferred . | . . . Parts Sabotaged . | . . . Parts Stolen . | . . . Parts Stripped . | . . . Power Chain Reactions . | . . . Alert | -11 -10 -9 ------- Run | Yrd Mat Mat Maximum Alert Level . | . . . Low Security (%) 100 | 100 100 100 Level 1 . | . . . Level 2 . | . . . Level 3 . | . . . Level 4 . | . . . Level 5 . | . . . High Security . | . . . Max Security . | . . . Peak Influence 70 | . 70 9 Initial 9 | . . 9 Average 15 | . 18 4 Influence Increases 207 | . 205 2 Destroy 0b10 Robot/C 140 | . 140 . Destroy 0b10 Robot/NC 5 | . 5 . Destroy Leader 40 | . 40 . Successful Hack 7 | . 5 2 Lose Combat Pursuer 15 | . 15 . Influence Decreases 205 | . 183 22 Entered New Map 13 | . . 13 Time Decay 152 | . 143 9 Lost Part 40 | . 40 . Squads Dispatched 2 | . 1 1 Investigation 2 | . 1 1 Extermination . | . . . Reinforcement . | . . . Assault . | . . . Garrison . | . . . Intercept . | . . . Searches Triggered . | . . . Construction Impeded . | . . . Haulers Reinforced . | . . . Active Scanning Responses . | . . . Cargo Convoy Interrupts . | . . . Stealth | -11 -10 -9 --------- Run | Yrd Mat Mat Distress Signals 1 | . 1 . Communications Jammed . | . . . Distress Signals . | . . . Times Spotted 17 | . 16 1 Peak Tracking Total 6 | . 6 1 Tactical Retreats 1 | . 1 . Traps | -11 -10 -9 ------- Run | Yrd Mat Mat Traps Triggered 1 | . 1 . Indirectly . | . . . Trap Hack Attempts . | . . . Triggered . | . . . Disarmed . | . . . Reprogrammed . | . . . Reused . | . . . Traps Extracted . | . . . Installed . | . . . Triggered . | . . . Machines | -11 -10 -9 ---------- Run | Yrd Mat Mat Machines Disabled . | . . . Max in Single Turn . | . . . Machines Repaired . | . . . Machines Dismantled . | . . . Machines Sabotaged . | . . . Overloaded Fab Kills . | . . . Hacking | -11 -10 -9 --------- Run | Yrd Mat Mat Machines Accessed 6 | . 4 2 Terminals 4 | . 3 1 Fabricators . | . . . Repair Stations . | . . . Recycling Units 1 | . 1 . Scanalyzers 1 | . . 1 Garrison Access . | . . . Total Hacks 17 | . 8 9 Successful 11 | . 4 7 Failed 6 | . 4 2 Catastrophic 2 | . 1 1 Database Lockouts . | . . . Manual 10 | . 5 5 Terminals 7 | . 5 2 Fabricators . | . . . Repair Stations . | . . . Recycling Units 3 | . 3 . Scanalyzers 7 | . . 7 Garrison Access . | . . . Terminal Hacks . | . . . Fabricator Hacks . | . . . Repair Station Hacks . | . . . Recycling Unit Hacks 3 | . 3 . Process 1 | . 1 . Report Inventory 1 | . 1 . Retrieve Matter 1 | . 1 . Scanalyzer 7 | . . 7 Insert Component 2 | . . 2 Analyze 3 | . . 3 Retrieve Study 2 | . . 2 Garrison Access Hacks . | . . . Unauthorized Hacks 1 | . 1 . Terminals 1 | . 1 . Botnet 1 | . 1 . Fabricators . | . . . Repair Stations . | . . . Recycling Units . | . . . Scanalyzers . | . . . Garrison Access . | . . . Data Cores Recovered . | . . . Used . | . . . Hacking Detections 5 | . 3 2 Full Trace Events 1 | . . 1 Feedback Events . | . . . Feedback Blocked . | . . . Robot Schematics Acquired . | . . . Robots Built . | . . . Authchips . | . . . Time . | . . . Total Robot Build Rating . | . . . Part Schematics Acquired 2 | . . 2 Parts Built . | . . . Authchips . | . . . Time . | . . . Total Part Build Rating . | . . . Part Studies Acquired 2 | . . 2 Parts Repaired . | . . . Time . | . . . Parts Recycled . | . . . Recycled Matter 20 | . 20 . Retrieved Matter 20 | . 20 . Retrieved Components . | . . . Parts Scanalyzed 2 | . . 2 Part Schematics Acquired 2 | . . 2 Parts Damaged . | . . . Bothacking | -11 -10 -9 ------------ Run | Yrd Mat Mat Used RIF Installer . | . . . Robots Hacked . | . . . Non-combat . | . . . Combat . | . . . Robot Hacks Applied . | . . . Relay Couplers Released . | . . . Fabnet Peak Effective % . | . . . Robots Rewired . | . . . Allies Hacked . | . . . Hacks Repelled . | . . . Allies | -11 -10 -9 -------- Run | Yrd Mat Mat Total Allies . | . . . Largest Group . | . . . Highest-Rated Group . | . . . Highest-Rated Ally . | . . . Total Orders . | . . . Ally Attacks . | . . . Total Damage . | . . . Kills . | . . . Allies Corrupted . | . . . Allies Melted . | . . . Intel | -11 -10 -9 ------- Run | Yrd Mat Mat Active Infowar (turns) 467 | . 429 38 Seismic 408 | . 370 38 T.N.C. 59 | . 59 . Robot Analysis Total . | . . . Derelict Logs Recovered . | . . . Drone Launches . | . . . Drone Recoveries . | . . . Exploration | -11 -10 -9 ------------- Run | Yrd Mat Mat Turns Passed 620 | 75 507 38 Spaces Moved 384 | 53 304 27 Core 5 | 5 . . Treads . | . . . Legs 379 | 48 304 27 Wheels . | . . . Hover . | . . . Flight . | . . . Fastest Speed 50 | 50 120 120 Average Speed 119 | 113 120 120 Slowest Speed 120 | 120 120 120 Overloaded Moves . | . . . Propulsion Burnouts . | . . . Robots Hopped . | . . . Potential Cave-ins . | . . . Cave-ins Triggered . | . . . Exploration Rate (%) 20 | 3 54 5 Regions Visited 2 Branch Regions . Pre-discovered Areas . | . . . Known Exits Taken . | . . . Unknown Exits Taken 2 | 1 1 . Scrap Searched . | . . . Spaces Dug . | . . . Terrain Destroyed . | . . . Melee . | . . . Projectile . | . . . AOE . | . . . Terrain Rammed . | . . . Walls Destroyed . | . . . Machines Disabled . | . . . Actions | -11 -10 -9 --------- Run | Yrd Mat Mat Total 496 | 68 396 32 Wait 59 | . 59 . Move 382 | 52 303 27 Hop . | . . . Pick Up 14 | 10 4 . Fast Attach . | . . . Attach 10 | 6 1 3 Detach 1 | . . 1 Swap 1 | . 1 . Drop . | . . . Fire 28 | . 28 . Melee . | . . . Ram . | . . . Kick 1 | . . 1 Crush . | . . . Escape Stasis . | . . . Rewire . | . . . Trap . | . . . Miscellaneous . | . . . Route ------- -11/Scrapyard -10/Materials (discovered 3 exits: *Mat x2 / [*Min]) -9/Materials History --------- Turn | Location | Event 19 | -11/Scrapyard | Discovered new exit (range 15) 76 | -11/Scrapyard | Entered Materials 308 | -10/Materials | Discovered new exit (range 6) 310 | -10/Materials | Build established: Mutant 331 | -10/Materials | Discovered new exit (range 8) 578 | -10/Materials | Discovered new exit (range 5) 583 | -10/Materials | Entered another Materials area 583 | -9/Materials | Evolved 2 slots: Propulsion x2 608 | -9/Materials | Lost 4 parts (1p1n2w) 621 | -9/Materials | Self-destructed Last Messages --------------- Schematic downloaded. 00620_ Connecting with Scanalyzer... >>Insert(Aluminum Leg) Scanning Aluminum Leg... Ready to analyze. >>Scanalyze Scanning: Aluminum Leg... Schematic downloaded. >>Study(Aluminum Leg) Identified Aluminum Leg... Downloading performance data... Effective improvements: -15 time/move >>Study(Ion Engine) Identified Ion Engine... Downloading performance data... Effective improvements: +2 supply 00620_ ALERT: Suspicious activity at Scanalyzer M001. Dispatching Investigation squad. Map ----- +----------------------------------------------------+ | ?????????????????????????????????????????????? | | ?????????????????????????????????????????????? | | ?????????????????????????????????????????????? | | ?????????????????????????????????????????????? | | ?????????????????????????????????????????????? | | ?????????????????????????????????????????????? | | ?????????????????????????????????????????????? | | ?????????????????????????????????????????????? | | ?????????????????????????????????????????????? | | ?????????????????????????????????????????????? | | ?????????????????????????????????????????????? | | ?????????????????????????????????????????????? | | ???????????????????????????????? ??????????? | | ???????????????????????????????? +?????????? | | ???????????????????????????????# #?????????? | | ???????????????????????????????# #?????????? | | ???????????????????????????????# #?????????? | | ???????????????????????????????# #?????????? | | ???????????????????????????????# #?????????? | | ???????????????????????????????# #?????????? | | ???????????????????????????????# #?????????? | | ???????????????????????????????# #?????????? | | ???????????????????????????????# #?????????? | | ?????????????????????########### ##########? | | ?????????????????????# # # #? | | ?????????????????????# "S@ """ # # """ "" #? | | ?????????????????????# """ """ # # """ "" #? | | ?????????????????????# "" """ + # """ T" #? | | ?????????????????????# # + "" #? | | ?????????????????????# # # """ "" #? | | ?????????????????????# # # """ #? | | ?????????????????????# # # """ #? | | ?????????????????????########### # #? | | ???????????????????????????????# ##########? | | ???????????????????????????????# #?????????? | | ???????????????????????????????# #?????????? | | ???????????????????????????????#####?????????? | | ?????????????????????????????????????????????? | | ?????????????????????????????????????????????? | | ?????????????????????????????????????????????? | | ?????????????????????????????????????????????? | | ?????????????????????????????????????????????? | | ?????????????????????????????????????????????? | | | | | | | | | | | | | | | +----------------------------------------------------+ Best States ------------- Heat Dissipation 28 Energy Generation 10 Energy Capacity 250 Matter Stores 300 Matter Capacity 300 Sight Range 16 Terrain Scan Density 10 Evasion (%) 55 Item Schematics ----------------- Lgt. Treads | -9/Materials | Scanalyzed Aluminum Leg | -9/Materials | Scanalyzed Robot Schematics ------------------ None Fabricated ------------ Nothing Repaired ---------- Nothing Studied --------- Aluminum Leg | -9/Materials | Hacked Ion Engine | -9/Materials | Hacked Alien Tech Used ----------------- None Achievements -------------- True Hacker Challenges ------------ None Game ------ Seed BoreInterceptSplitter Manual? 0 Play Time 00:10:31 Cumulative 7.8 hours Start 2025.12.06 @ 23:36:26 End 2025.12.07 @ 18:50:08 Sessions 6 Manual Loads 0 Difficulty Rogue Special Mode None Game No. 10 Rogue 10 Adventurer 0 Explorer 0 Win Type - Total 0 Types 0/0/0/0/0/0/0/0/0/0 Lore% 10 Gallery% 11 Achievement% 11 Wizard Run 0 Options --------- Layout 1 ASCII 0 Keyboard 0 Movement Numpad Keybinds 1 Fullscreen 1 Font 24/Smallcaps Map View 50x35 Zoom Use 0% Tactical HUD 1 Map Filters NONE Filters NONE Steam 1 RUN: 848bf47f-f20d-4ce0-8ac3-e72165983c0f